[Event "GER-ch Youth U12 2019"]
[Site "Willingen"]
[Date "2019.06.12"]
[Round "6.9"]
[White "von Mettenheim, Johannes"]
[Black "Breitkopf-Lazar, Patrick-Robert"]
[Result "1/2-1/2"]
[ECO "D56"]
[WhiteElo "1757"]
[BlackElo "1659"]
[Annotator "NA"]
[PlyCount "83"]
[EventDate "2019.06.07"]
[EventType "swiss"]
[EventRounds "9"]
[EventCountry "GER"]
[SourceTitle "playchess.com"]
[Source "ChessBase"]
[SourceQuality "1"]
[TimeControl "40/4500+30:900+30"]

1. d4 {[%emt 0:00:00]} Nf6 {[%emt 0:00:00]} 2. c4 {[%emt 0:00:00]} e6 {[%emt 0:00:00]} 3. Nc3 {[%emt 0:00:00]} d5 {[%emt 0:00:00]} 4. Bg5 {[%emt 0:00:00]} Be7 {[%emt 0:00:00]} 5. e3 {[%emt 0:00:00]} h6 {[%emt 0:00:00]} 6. Bh4 {[%emt 0:00:00]} O-O {[%emt 0:00:00]} 7. Nf3 {[%emt 0:00:00]} Ne4 {[%emt 0:00:00]} 8. Bxe7 {[%emt 0:00:00]} Qxe7 {[%emt 0:00:00]} 9. Rc1 {[%emt 0:00:00]} c6 {[%emt 0:00:00]} 10. Bd3 {[%emt 0:00:00]} Nxc3 {[%emt 0:00:00]} 11. Rxc3 {[%emt 0:00:00]} dxc4 {[%emt 0:00:00]} 12. Rxc4 {[%emt 0:00:00]} b6 {[%emt 0:00:00]} 13. O-O {[%emt 0:00:00]} Bb7 {[%emt 0:00:11]} 14. Qe2 {[%emt 0:00:00]} Nd7 {[%emt 0:02:13]} 15. Rfc1 {[%emt 0:00:00]} Rfc8 {[%emt 0:02:59]} 16. R4c3 {[%emt 0:00:00]} a5 {[%emt 0:03:55]} 17. Bb1 {[%emt 0:00:00]} c5 {[%emt 0:04:35]} 18. Qc2 {[%emt 0:00:00]} g6 {[%emt 0:01:13]} 19. dxc5 {[%emt 0:14:15]} Nxc5 {[%emt 0:07:02]} 20. Ne5 {[%emt 0:03:01]} Ne4 {[%emt 0:07:21]} 21. Rc7 {[%emt 0:06:41]} Rxc7 {[%emt 0:00:59]} 22. Qxc7 {[%emt 0:00:03]} Rc8 {[%emt 0:00:14]} 23. Qxc8+ {[%emt 0:00:18]} Bxc8 {[%emt 0:00:31]} 24. Rxc8+ {[%emt 0:00:01]} Kg7 {[%emt 0:00:07]} 25. Bxe4 {[%emt 0:00:16]} Qb4 {[%emt 0:00:54]} 26. Bd3 {[%emt 0:01:03]} Qxb2 {[%emt 0:00:30]} 27. Nc4 {[%emt 0:00:33]} Qxa2 {[%emt 0:03:25]} 28. Rb8 {[%emt 0:03:39]} Qa1+ {[%emt 0:02:01]} 29. Bf1 {[%emt 0:00:02]} a4 {[%emt 0:01:51]} 30. Rxb6 {[%emt 0:00:07]} a3 {[%emt 0:00:22]} 31. Nxa3 {[%emt 0:01:13]} Qxa3 {[%emt 0:00:09]} 32. Ra6 {[%emt 0:00:41]} Qc1 {[%emt 0:01:14]} 33. Rd6 {[%emt 0:00:13]} g5 {[%emt 0:17:02]} 34. Rd4 {[%emt 0:00:27]} f5 {[%emt 0:02:07]} 35. g3 {[%emt 0:03:53]} e5 {[%emt 0:07:06]} 36. Rd6 {[%emt 0:01:14]} f4 {[%emt 0:01:26]} 37. gxf4 {[%emt 0:00:11]} gxf4 {[%emt 0:00:15]} 38. exf4 {[%emt 0:00:01]} exf4 {[%emt 0:00:12]} 39. Rb6 {[%emt 0:03:24]} f3 {[%emt 0:04:02]} 40. Ra6 {[%emt 0:01:37]} Qg5+ {[%emt 0:01:18]} 41. Kh1 {[%emt 0:15:02]} h5 {[%emt 0:15:45]} 42. Rc6 {[%emt 0:00:49] normal} 1/2-1/2

[Event "GER-ch Youth U12 2019"]
[Site "Willingen"]
[Date "2019.06.12"]
[Round "6.10"]
[White "Mueller, Maximilian"]
[Black "Ohler, Julius"]
[Result "0-1"]
[ECO "B01"]
[WhiteElo "1606"]
[BlackElo "1837"]
[Annotator "NA"]
[PlyCount "87"]
[EventDate "2019.06.07"]
[EventType "swiss"]
[EventRounds "9"]
[EventCountry "GER"]
[SourceTitle "playchess.com"]
[Source "ChessBase"]
[SourceQuality "1"]
[TimeControl "40/4500+30:900+30"]

1. e4 {[%emt 0:00:00]} d5 {[%emt 0:00:00]} 2. exd5 {[%emt 0:00:00]} Qxd5 {[%emt 0:00:00]} 3. Nc3 {[%emt 0:00:00]} Qd8 {[%emt 0:00:00]} 4. d4 {[%emt 0:00:00]} g6 {[%emt 0:00:00]} 5. Nf3 {[%emt 0:00:00]} Bg7 {[%emt 0:00:00]} 6. h3 {[%emt 0:00:00]} Nh6 {[%emt 0:00:00]} 7. Bc4 {[%emt 0:00:00]} Nf5 {[%emt 0:00:00]} 8. Be3 {[%emt 0:00:00]} O-O {[%emt 0:00:00]} 9. O-O {[%emt 0:00:00]} Nc6 {[%emt 0:00:00]} 10. d5 {[%emt 0:00:00]} Na5 {[%emt 0:00:00]} 11. Bb3 {[%emt 0:00:00]} Nxb3 12. axb3 {[%emt 0:00:00]} a6 {[%emt 0:06:09]} 13. Bc5 {[%emt 0:03:34]} b6 {[%emt 0:02:10]} 14. Ba3 {[%emt 0:00:48]} Bb7 {[%emt 0:01:37]} 15. Re1 {[%emt 0:00:59]} Bxc3 {[%emt 0:09:32]} 16. bxc3 {[%emt 0:00:15]} Bxd5 {[%emt 0:00:35]} 17. Qe2 {[%emt 0:01:25]} Bxf3 {[%emt 0:03:37]} 18. Qxf3 {[%emt 0:00:32]} c5 {[%emt 0:01:30]} 19. Rad1 {[%emt 0:04:20]} Qc7 {[%emt 0:01:11]} 20. Bb2 {[%emt 0:00:47]} Rad8 {[%emt 0:02:04]} 21. Rxd8 {[%emt 0:01:16]} Rxd8 {[%emt 0:01:03]} 22. c4 {[%emt 0:02:37]} Nd4 {[%emt 0:01:56]} 23. Qe4 {[%emt 0:01:34]} e6 {[%emt 0:01:23]} 24. Rd1 {[%emt 0:11:55]} e5 {[%emt 0:18:03]} 25. Bxd4 {[%emt 0:07:29]} exd4 {[%emt 0:04:14]} 26. Re1 {[%emt 0:03:21]} b5 {[%emt 0:01:23]} 27. Qd3 {[%emt 0:00:30]} b4 {[%emt 0:03:14]} 28. Re4 {[%emt 0:03:04]} Qc6 {[%emt 0:00:34]} 29. Qe2 {[%emt 0:02:00]} a5 {[%emt 0:01:15]} 30. Qd3 {[%emt 0:01:57]} a4 {[%emt 0:00:49]} 31. bxa4 {[%emt 0:00:34]} Qxa4 {[%emt 0:02:58]} 32. Re1 {[%emt 0:00:45]} Re8 {[%emt 0:01:50]} 33. Rxe8+ {[%emt 0:01:08]} Qxe8 {[%emt 0:00:13]} 34. g3 {[%emt 0:00:50]} Qe1+ {[%emt 0:01:31]} 35. Kg2 {[%emt 0:00:06]} Qe6 {[%emt 0:02:30]} 36. Qb3 {[%emt 0:02:36]} Kg7 {[%emt 0:00:24]} 37. Qd3 {[%emt 0:00:09]} h6 {[%emt 0:00:31]} 38. Kh2 {[%emt 0:03:02]} Qf5 {[%emt 0:00:16]} 39. Qd2 {[%emt 0:00:31]} Qf3 {[%emt 0:00:42]} 40. Kg1 {[%emt 0:00:46]} b3 {[%emt 0:03:17]} 41. cxb3 {[%emt 0:15:58]} Qxb3 {[%emt 0:15:12]} 42. Qe2 {[%emt 0:00:09]} Qb1+ {[%emt 0:00:06]} 43. Kg2 {[%emt 0:00:04]} Qf5 {[%emt 0:00:09]} 44. h4 {[%emt 0:06:53] normal} 0-1

[Event "GER-ch Youth U12 2019"]
[Site "Willingen"]
[Date "2019.06.12"]
[Round "6.11"]
[White "Guo, Philipp Ziming"]
[Black "Bungarten, Jona"]
[Result "1-0"]
[ECO "C44"]
[WhiteElo "1674"]
[BlackElo "1642"]
[Annotator "NA"]
[PlyCount "129"]
[EventDate "2019.06.07"]
[EventType "swiss"]
[EventRounds "9"]
[EventCountry "GER"]
[SourceTitle "playchess.com"]
[Source "ChessBase"]
[SourceQuality "1"]
[TimeControl "40/4500+30:900+30"]

1. e4 {[%emt 0:00:00]} e5 {[%emt 0:00:00]} 2. Nf3 {[%emt 0:00:00]} Nc6 {[%emt 0:00:00]} 3. c3 {[%emt 0:00:00]} d5 {[%emt 0:00:00]} 4. Qa4 {[%emt 0:00:00]} f6 {[%emt 0:00:00]} 5. d3 {[%emt 0:00:00]} dxe4 {[%emt 0:00:00]} 6. dxe4 {[%emt 0:00:00]} Be6 {[%emt 0:00:00]} 7. Bc4 {[%emt 0:00:00]} Bxc4 {[%emt 0:00:00]} 8. Qxc4 {[%emt 0:00:00]} Qd7 {[%emt 0:00:00]} 9. O-O {[%emt 0:00:00]} O-O-O {[%emt 0:00:00]} 10. b4 {[%emt 0:00:00]} g5 {[%emt 0:02:51]} 11. a4 {[%emt 0:01:56]} Qd3 {[%emt 0:04:35]} 12. Na3 {[%emt 0:08:47]} Bg7 {[%emt 0:04:36]} 13. Bb2 {[%emt 0:09:34]} h5 {[%emt 0:03:04]} 14. Qxd3 {[%emt 0:03:41]} Rxd3 {[%emt 0:01:01]} 15. Rfd1 {[%emt 0:00:34]} Rxd1+ {[%emt 0:00:58]} 16. Rxd1 {[%emt 0:02:19]} Nge7 {[%emt 0:02:47]} 17. Kf1 {[%emt 0:04:38]} h4 {[%emt 0:02:24]} 18. h3 {[%emt 0:01:52]} Ng6 {[%emt 0:02:12]} 19. Ng1 {[%emt 0:06:20]} Nce7 {[%emt 0:05:08]} 20. Bc1 {[%emt 0:06:36]} Nf4 {[%emt 0:01:04]} 21. Ne2 {[%emt 0:02:28]} f5 {[%emt 0:01:03]} 22. exf5 {[%emt 0:03:07]} Nxf5 {[%emt 0:00:29]} 23. Nxf4 {[%emt 0:03:04]} exf4 {[%emt 0:01:15]} 24. Rd3 {[%emt 0:01:46]} Rd8 {[%emt 0:01:49]} 25. Ke2 {[%emt 0:03:53]} Nd6 {[%emt 0:07:20]} 26. Kf3 {[%emt 0:06:34]} Re8 {[%emt 0:01:44]} 27. c4 {[%emt 0:04:37]} Re1 {[%emt 0:03:14]} 28. Bd2 {[%emt 0:02:03]} Ra1 {[%emt 0:04:45]} 29. c5 {[%emt 0:01:45]} Nf7 {[%emt 0:01:47]} 30. Rb3 {[%emt 0:05:21]} Kd7 {[%emt 0:02:03]} 31. Bc3 {[%emt 0:00:45]} Bxc3 {[%emt 0:00:41]} 32. Rxc3 {[%emt 0:00:01]} Ne5+ {[%emt 0:00:23]} 33. Ke4 {[%emt 0:01:27]} Ke6 {[%emt 0:00:55]} 34. a5 {[%emt 0:04:31]} c6 {[%emt 0:01:02]} 35. Nc2 {[%emt 0:00:21]} Rg1 {[%emt 0:00:38]} 36. Nd4+ {[%emt 0:01:40]} Kf6 {[%emt 0:00:11]} 37. Nf3 {[%emt 0:01:16]} Nxf3 {[%emt 0:00:09]} 38. Kxf3 {[%emt 0:00:04]} Ke5 {[%emt 0:00:51]} 39. Rc4 {[%emt 0:01:19]} Kd5 {[%emt 0:00:16]} 40. Rc2 {[%emt 0:01:48]} Kd4 {[%emt 0:00:29]} 41. Re2 {[%emt 0:15:33]} Rb1 {[%emt 0:16:19]} 42. Kg4 {[%emt 0:00:00]} Rxb4 {[%emt 0:00:00]} 43. Kxg5 {[%emt 0:00:00]} Kxc5 44. Rc2+ {[%emt 0:00:00]} Kb5 {[%emt 0:00:00]} 45. Kxh4 {[%emt 0:00:00]} f3+ {[%emt 0:00:00]} 46. g4 {[%emt 0:00:00]} Rb1 {[%emt 0:00:00]} 47. g5 {[%emt 0:00:00]} c5 {[%emt 0:00:00]} 48. g6 {[%emt 0:00:00]} c4 {[%emt 0:00:00]} 49. Kg5 {[%emt 0:00:00]} Rg1+ {[%emt 0:00:00]} 50. Kf6 {[%emt 0:00:00]} Kb4 {[%emt 0:00:00]} 51. h4 {[%emt 0:00:00]} Kb3 {[%emt 0:00:00]} 52. Rd2 {[%emt 0:00:00]} c3 {[%emt 0:00:00]} 53. Rd3 {[%emt 0:00:00]} Kc4 {[%emt 0:00:00]} 54. Rxc3+ {[%emt 0:00:00]} Kxc3 {[%emt 0:00:00]} 55. g7 {[%emt 0:00:00]} Kd2 {[%emt 0:00:00]} 56. h5 {[%emt 0:00:00]} Ke2 {[%emt 0:00:00]} 57. h6 {[%emt 0:00:00]} Rh1 {[%emt 0:00:00]} 58. g8=Q {[%emt 0:00:00]} Rxh6+ {[%emt 0:00:00]} 59. Kg5 {[%emt 0:00:00]} Rh2 {[%emt 0:00:00]} 60. Qb8 {[%emt 0:00:01]} Rg2+ {[%emt 0:00:00]} 61. Kf4 {[%emt 0:00:58]} b6 {[%emt 0:00:00]} 62. Qe5+ {[%emt 0:03:30]} Kf1 {[%emt 0:01:18]} 63. Kxf3 {[%emt 0:02:01]} Rxf2+ {[%emt 0:00:21]} 64. Kg3 {[%emt 0:00:39]} Rg2+ {[%emt 0:00:11]} 65. Kh3 {[%emt 0:00:18] normal} 1-0

[Event "GER-ch Youth U12 2019"]
[Site "Willingen"]
[Date "2019.06.12"]
[Round "6.12"]
[White "Hagenbeck-Huebert, Jan"]
[Black "Rempe, Jonas"]
[Result "0-1"]
[ECO "E61"]
[WhiteElo "1574"]
[BlackElo "1781"]
[Annotator "NA"]
[PlyCount "108"]
[EventDate "2019.06.07"]
[EventType "swiss"]
[EventRounds "9"]
[EventCountry "GER"]
[SourceTitle "playchess.com"]
[Source "ChessBase"]
[SourceQuality "1"]
[TimeControl "40/4500+30:900+30"]

1. d4 {[%emt 0:00:00]} Nf6 {[%emt 0:00:00]} 2. c4 {[%emt 0:00:00]} g6 {[%emt 0:00:00]} 3. Nc3 {[%emt 0:00:00]} Bg7 {[%emt 0:00:00]} 4. Bf4 {[%emt 0:00:00]} O-O {[%emt 0:00:00]} 5. h3 {[%emt 0:00:00]} d6 {[%emt 0:00:00]} 6. e3 {[%emt 0:00:00]} Nc6 {[%emt 0:00:00]} 7. Nf3 {[%emt 0:00:00]} Nd7 {[%emt 0:00:00]} 8. Be2 {[%emt 0:00:00]} e5 {[%emt 0:00:00]} 9. Bh2 {[%emt 0:00:00]} f5 {[%emt 0:00:00]} 10. d5 {[%emt 0:00:00]} Ne7 {[%emt 0:00:00]} 11. Nd2 {[%emt 0:00:00]} Nf6 {[%emt 0:00:00]} 12. Qc2 {[%emt 0:00:00]} g5 {[%emt 0:00:00]} 13. f4 {[%emt 0:01:46]} gxf4 {[%emt 0:00:00]} 14. exf4 {[%emt 0:00:40]} e4 {[%emt 0:00:00]} 15. Bg1 {[%emt 0:03:06]} Ng6 {[%emt 0:00:00]} 16. Be3 {[%emt 0:00:44]} Nh5 {[%emt 0:00:00]} 17. Bxh5 {[%emt 0:00:43]} Qh4+ {[%emt 0:00:00]} 18. Bf2 {[%emt 0:03:51]} Qxh5 {[%emt 0:00:00]} 19. g3 {[%emt 0:01:01]} Re8 {[%emt 0:00:00]} 20. Be3 {[%emt 0:01:53]} Bh6 {[%emt 0:13:48]} 21. Ne2 {[%emt 0:03:30]} Ne5 {[%emt 0:01:41]} 22. Nb3 {[%emt 0:08:01]} Nd3+ {[%emt 0:00:20]} 23. Kd2 {[%emt 0:01:38]} Bg7 {[%emt 0:00:48]} 24. Nbd4 {[%emt 0:04:25]} Bd7 {[%emt 0:03:06]} 25. a3 {[%emt 0:03:33]} c5 {[%emt 0:00:43]} 26. dxc6 {[%emt 0:02:11]} bxc6 {[%emt 0:00:12]} 27. Rab1 {[%emt 0:03:45]} c5 {[%emt 0:00:35]} 28. Nb5 {[%emt 0:01:34]} a6 {[%emt 0:02:05]} 29. Nc7 {[%emt 0:01:42]} Rab8 {[%emt 0:02:28]} 30. Nxe8 Qxe8 {[%emt 0:00:02]} 31. b3 {[%emt 0:03:08]} a5 {[%emt 0:03:25]} 32. a4 {[%emt 0:02:12]} Qe6 {[%emt 0:00:47]} 33. Nc3 {[%emt 0:02:00]} Bc6 {[%emt 0:02:02]} 34. Ke2 {[%emt 0:04:06]} Bd4 {[%emt 0:01:58]} 35. Rhg1 {[%emt 0:04:06]} Bxe3 {[%emt 0:04:29]} 36. Kxe3 {[%emt 0:00:23]} Qf6 {[%emt 0:00:02]} 37. Ne2 {[%emt 0:01:14]} Nb4 {[%emt 0:03:24]} 38. Qd2 {[%emt 0:03:41]} d5 {[%emt 0:01:28]} 39. Qb2 {[%emt 0:02:53]} d4+ {[%emt 0:00:41]} 40. Kd2 {[%emt 0:01:54]} e3+ {[%emt 0:01:15]} 41. Kd1 {[%emt 0:15:42]} Nd3 {[%emt 0:15:18]} 42. Qa2 {[%emt 0:03:41]} Be4 {[%emt 0:00:34]} 43. Nc1 {[%emt 0:01:56]} Nf2+ {[%emt 0:00:49]} 44. Ke2 {[%emt 0:00:50]} Qc6 {[%emt 0:07:20]} 45. Rb2 {[%emt 0:03:25]} Bf3+ {[%emt 0:03:48]} 46. Ke1 {[%emt 0:00:33]} Nd1 {[%emt 0:04:18]} 47. Nd3 {[%emt 0:02:35]} Nc3 {[%emt 0:00:24]} 48. Qa1 {[%emt 0:01:54]} Be4 {[%emt 0:01:09]} 49. Ne5 {[%emt 0:01:14]} Qb7 {[%emt 0:00:27]} 50. g4 {[%emt 0:01:51]} d3 {[%emt 0:00:49]} 51. gxf5+ {[%emt 0:01:39]} Kh8 {[%emt 0:03:04]} 52. Nxd3 {[%emt 0:00:45]} Bxd3 {[%emt 0:00:55]} 53. Rbg2 {[%emt 0:00:19]} Qxb3 {[%emt 0:00:28]} 54. Qc1 {[%emt 0:04:06]} Qb1 {[%emt 0:00:27] normal} 0-1

[Event "GER-ch Youth U12 2019"]
[Site "Willingen"]
[Date "2019.06.12"]
[Round "6.13"]
[White "Amato, Cristiano"]
[Black "Fuhrmann, Bahne"]
[Result "1-0"]
[ECO "C77"]
[WhiteElo "1800"]
[BlackElo "1659"]
[Annotator "NA"]
[PlyCount "63"]
[EventDate "2019.06.07"]
[EventType "swiss"]
[EventRounds "9"]
[EventCountry "GER"]
[SourceTitle "playchess.com"]
[Source "ChessBase"]
[SourceQuality "1"]
[TimeControl "40/4500+30:900+30"]

1. e4 {[%emt 0:00:00]} e5 {[%emt 0:00:00]} 2. Nf3 {[%emt 0:00:00]} Nc6 {[%emt 0:00:00]} 3. Bb5 {[%emt 0:00:00]} a6 {[%emt 0:00:00]} 4. Ba4 {[%emt 0:00:00]} Nf6 {[%emt 0:00:00]} 5. Qe2 {[%emt 0:00:00]} b5 {[%emt 0:00:00]} 6. Bb3 {[%emt 0:00:00]} Bc5 {[%emt 0:00:00]} 7. a4 {[%emt 0:00:00]} bxa4 {[%emt 0:00:00]} 8. Bxf7+ {[%emt 0:00:00]} Kxf7 {[%emt 0:00:00]} 9. Qc4+ {[%emt 0:00:00]} Ke8 {[%emt 0:00:00]} 10. Qxc5 {[%emt 0:00:00]} Qe7 {[%emt 0:00:00]} 11. Qxe7+ {[%emt 0:00:00]} Kxe7 {[%emt 0:00:00]} 12. d3 {[%emt 0:00:00]} d6 {[%emt 0:08:25]} 13. Rxa4 {[%emt 0:00:00]} Bd7 {[%emt 0:00:56]} 14. Ra1 {[%emt 0:00:00]} Nb4 {[%emt 0:01:05]} 15. Na3 Ba4 {[%emt 0:01:07]} 16. b3 {[%emt 0:00:00]} Bxb3 {[%emt 0:03:04]} 17. cxb3 {[%emt 0:00:00]} Nxd3+ {[%emt 0:00:06]} 18. Ke2 {[%emt 0:00:00]} Nc5 {[%emt 0:01:17]} 19. Nd2 {[%emt 0:00:00]} Nfxe4 {[%emt 0:00:44]} 20. Nxe4 {[%emt 0:00:00]} Nxe4 {[%emt 0:00:07]} 21. f3 {[%emt 0:00:00]} Nc5 {[%emt 0:02:59]} 22. Bg5+ {[%emt 0:00:24]} Ke6 {[%emt 0:00:16]} 23. Rab1 {[%emt 0:03:19]} a5 {[%emt 0:01:46]} 24. Be3 {[%emt 0:00:56]} Nd7 {[%emt 0:02:23]} 25. Rhc1 {[%emt 0:01:14]} Rhc8 {[%emt 0:02:28]} 26. f4 {[%emt 0:02:50]} e4 {[%emt 0:01:23]} 27. Rc4 {[%emt 0:03:02]} Nf6 {[%emt 0:02:50]} 28. Bd4 {[%emt 0:10:52]} Nh5 {[%emt 0:02:46]} 29. Be3 {[%emt 0:05:25]} Nf6 {[%emt 0:05:23]} 30. Nb5 {[%emt 0:01:50]} Nd5 {[%emt 0:08:50]} 31. Rxe4+ {[%emt 0:00:32]} Kf5 {[%emt 0:00:33]} 32. Kf3 {[%emt 0:02:27] normal} 1-0

[Event "GER-ch Youth U12 2019"]
[Site "Willingen"]
[Date "2019.06.12"]
[Round "6.14"]
[White "Gressler, Christian"]
[Black "Schwartz, Oliver"]
[Result "1/2-1/2"]
[ECO "B30"]
[WhiteElo "1416"]
[BlackElo "1616"]
[Annotator "NA"]
[PlyCount "69"]
[EventDate "2019.06.07"]
[EventType "swiss"]
[EventRounds "9"]
[EventCountry "GER"]
[SourceTitle "playchess.com"]
[Source "ChessBase"]
[SourceQuality "1"]
[TimeControl "40/4500+30:900+30"]

1. e4 {[%emt 0:00:00]} c5 {[%emt 0:00:00]} 2. Nf3 {[%emt 0:00:00]} Nc6 {[%emt 0:00:00]} 3. d3 {[%emt 0:00:00]} g6 {[%emt 0:00:00]} 4. g3 {[%emt 0:00:00]} Bg7 {[%emt 0:00:00]} 5. Bg2 {[%emt 0:00:00]} d6 {[%emt 0:00:00]} 6. O-O {[%emt 0:00:00]} e5 {[%emt 0:00:00]} 7. Nc3 {[%emt 0:00:00]} Nge7 {[%emt 0:00:00]} 8. Be3 {[%emt 0:00:00]} O-O {[%emt 0:00:00]} 9. Qd2 {[%emt 0:00:00]} f5 {[%emt 0:00:00]} 10. Bh6 {[%emt 0:00:00]} f4 {[%emt 0:00:00]} 11. Bxg7 {[%emt 0:00:00]} Kxg7 {[%emt 0:00:00]} 12. Ne2 {[%emt 0:00:00]} fxg3 {[%emt 0:18:38]} 13. fxg3 {[%emt 0:00:00]} Qb6 {[%emt 0:06:05]} 14. c3 {[%emt 0:00:00]} Be6 {[%emt 0:07:16]} 15. Ng5 {[%emt 0:00:00]} Bg8 {[%emt 0:00:38]} 16. Bh3 {[%emt 0:00:00]} h6 {[%emt 0:07:02]} 17. Ne6+ {[%emt 0:00:30]} Bxe6 {[%emt 0:00:27]} 18. Bxe6 {[%emt 0:00:05]} Rad8 {[%emt 0:04:30]} 19. g4 {[%emt 0:05:18]} a6 {[%emt 0:13:19]} 20. h4 {[%emt 0:01:17]} Qa7 {[%emt 0:01:45]} 21. Kg2 {[%emt 0:00:55]} b5 {[%emt 0:00:47]} 22. Ng3 {[%emt 0:00:53]} b4 {[%emt 0:04:21]} 23. h5 {[%emt 0:00:59]} g5 {[%emt 0:00:11]} 24. Nf5+ {[%emt 0:01:10]} Nxf5 {[%emt 0:03:39]} 25. Bxf5 {[%emt 0:01:33]} a5 {[%emt 0:03:16]} 26. Rf2 {[%emt 0:01:40]} Ne7 {[%emt 0:00:39]} 27. Raf1 {[%emt 0:00:26]} d5 {[%emt 0:01:32]} 28. Be6 {[%emt 0:01:43]} Rf4 {[%emt 0:01:55]} 29. Rxf4 {[%emt 0:02:03]} exf4 {[%emt 0:01:43]} 30. Qe2 {[%emt 0:01:40]} Qb7 {[%emt 0:01:44]} 31. Kh3 {[%emt 0:06:01]} Qc6 {[%emt 0:01:26]} 32. Bf5 {[%emt 0:04:18]} Nxf5 {[%emt 0:01:04]} 33. exf5 {[%emt 0:00:14]} Re8 {[%emt 0:00:32]} 34. Qg2 {[%emt 0:05:40]} Qd6 {[%emt 0:01:19]} 35. Rf2 {[%emt 0:03:47] normal} 1/2-1/2

[Event "GER-ch Youth U12 2019"]
[Site "Willingen"]
[Date "2019.06.12"]
[Round "6.15"]
[White "Moeller, Maurin"]
[Black "Malchereck, Zion"]
[Result "0-1"]
[ECO "C54"]
[WhiteElo "1686"]
[BlackElo "1438"]
[Annotator "NA"]
[PlyCount "121"]
[EventDate "2019.06.07"]
[EventType "swiss"]
[EventRounds "9"]
[EventCountry "GER"]
[SourceTitle "playchess.com"]
[Source "ChessBase"]
[SourceQuality "1"]
[TimeControl "40/4500+30:900+30"]

1. e4 e5 2. Nf3 Nc6 3. Bc4 Bc5 4. c3 Nf6 5. d3 d6 6. Bb3 h6 7. h3 O-O 8. O-O a6 9. Re1 Re8 10. Nbd2 Ne7 11. d4 exd4 12. cxd4 Ba7 13. Nf1 Ng6 14. Ng3 b5 15. Qc2 Bb7 16. a3 {[%emt 0:08:02]} Rc8 {[%emt 0:00:00]} 17. Bd2 {[%emt 0:13:43]} c5 {[%emt 0:02:21]} 18. d5 {[%emt 0:01:24]} c4 {[%emt 0:03:55]} 19. Ba2 {[%emt 0:02:59]} Bc5 {[%emt 0:02:00]} 20. Bb1 {[%emt 0:21:48]} Nd7 {[%emt 0:12:02]} 21. Qc3 f6 {[%emt 0:07:22]} 22. Nf5 {[%emt 0:08:31]} Nde5 {[%emt 0:02:00]} 23. Nxe5 {[%emt 0:03:02]} fxe5 {[%emt 0:02:48]} 24. Qg3 {[%emt 0:00:40]} Qf6 {[%emt 0:01:35]} 25. h4 {[%emt 0:03:55]} Kf7 {[%emt 0:04:30]} 26. Bc2 {[%emt 0:04:55]} Ra8 {[%emt 0:03:48]} 27. Bd1 {[%emt 0:00:29]} Bxd5 {[%emt 0:02:45]} 28. Nxh6+ {[%emt 0:00:41]} gxh6 {[%emt 0:00:38]} 29. exd5 {[%emt 0:00:11]} Nxh4 {[%emt 0:03:47]} 30. Bh5+ {[%emt 0:00:37]} Ke7 {[%emt 0:00:42]} 31. Bxe8 {[%emt 0:00:17]} Rxe8 {[%emt 0:00:06]} 32. Be3 {[%emt 0:01:33]} Bxe3 {[%emt 0:01:10]} 33. fxe3 {[%emt 0:00:42]} Nf5 {[%emt 0:00:31]} 34. Qh3 {[%emt 0:00:36]} Qg5 {[%emt 0:01:24]} 35. Re2 {[%emt 0:00:56]} Kd8 {[%emt 0:03:07]} 36. Kh2 {[%emt 0:03:21]} Rg8 {[%emt 0:01:35]} 37. Rf1 {[%emt 0:00:24]} Qg3+ 38. Qxg3 {[%emt 0:01:31]} Nxg3 {[%emt 0:00:38]} 39. Ref2 {[%emt 0:00:27]} Nxf1+ {[%emt 0:00:42]} 40. Rxf1 {[%emt 0:00:09]} Ke7 {[%emt 0:00:13]} 41. Rf2 {[%emt 0:15:44]} Rc8 {[%emt 0:16:11]} 42. Rc2 {[%emt 0:01:49]} Kf6 {[%emt 0:00:53]} 43. e4 {[%emt 0:00:17]} Kg5 {[%emt 0:01:00]} 44. Kg3 {[%emt 0:00:13]} Rf8 {[%emt 0:01:08]} 45. Rc1 {[%emt 0:00:48]} h5 {[%emt 0:00:13]} 46. Rh1 {[%emt 0:00:23]} Rf4 {[%emt 0:00:29]} 47. Re1 {[%emt 0:00:24]} h4+ {[%emt 0:00:15]} 48. Kh3 {[%emt 0:00:59]} Rg4 {[%emt 0:00:09]} 49. Re2 {[%emt 0:01:46]} Rg3+ {[%emt 0:00:44]} 50. Kh2 {[%emt 0:00:10]} Kf4 {[%emt 0:00:47]} 51. Kh1 {[%emt 0:00:12]} Re3 {[%emt 0:02:37]} 52. Rxe3 {[%emt 0:00:06]} Kxe3 {[%emt 0:00:42]} 53. Kh2 {[%emt 0:00:09]} Kf4 {[%emt 0:02:00]} 54. Kh3 {[%emt 0:00:05]} Kg5 {[%emt 0:00:21]} 55. g3 {[%emt 0:00:09]} hxg3 {[%emt 0:00:27]} 56. Kxg3 {[%emt 0:00:05]} a5 {[%emt 0:00:05]} 57. Kf3 {[%emt 0:00:03]} Kh4 {[%emt 0:00:32]} 58. Ke3 {[%emt 0:00:08]} Kg3 {[%emt 0:00:23]} 59. Kd2 {[%emt 0:00:25]} Kf3 {[%emt 0:00:18]} 60. Kc3 {[%emt 0:00:09]} Kxe4 {[%emt 0:00:21]} 61. a4 {[%emt 0:00:19] normal} 0-1

[Event "GER-ch Youth U12 2019"]
[Site "Willingen"]
[Date "2019.06.13"]
[Round "7.1"]
[White "Foerster-Yialamas, Lucas"]
[Black "Metzdorf, Matteo"]
[Result "1-0"]
[ECO "B42"]
[WhiteElo "1981"]
[BlackElo "1859"]
[Annotator "NA"]
[PlyCount "50"]
[EventDate "2019.06.07"]
[EventType "swiss"]
[EventRounds "9"]
[EventCountry "GER"]
[SourceTitle "playchess.com"]
[Source "ChessBase"]
[SourceQuality "1"]
[TimeControl "40/4500+30:900+30"]

1. e4 {[%emt 0:00:00]} c5 {[%emt 0:00:00]} 2. Nf3 {[%emt 0:00:00]} e6 {[%emt 0:00:00]} 3. d4 {[%emt 0:00:00]} cxd4 {[%emt 0:00:00]} 4. Nxd4 {[%emt 0:00:00]} a6 {[%emt 0:00:00]} 5. Bd3 {[%emt 0:00:00]} Qc7 {[%emt 0:00:00]} 6. c4 {[%emt 0:00:00]} Nc6 {[%emt 0:00:00]} 7. Nxc6 {[%emt 0:00:00]} dxc6 {[%emt 0:00:00]} 8. Nc3 {[%emt 0:00:00]} Nf6 {[%emt 0:00:00]} 9. O-O {[%emt 0:00:00]} e5 {[%emt 0:00:00]} 10. h3 {[%emt 0:00:00]} Be6 {[%emt 0:05:27]} 11. Be3 {[%emt 0:00:00]} Nd7 {[%emt 0:05:00]} 12. Qc2 {[%emt 0:00:00]} f6 {[%emt 0:01:28]} 13. Be2 {[%emt 0:00:00]} a5 {[%emt 0:19:32]} 14. Na4 {[%emt 0:00:59]} Be7 {[%emt 0:16:00]} 15. c5 {[%emt 0:02:02]} O-O {[%emt 0:03:53]} 16. Bc4 {[%emt 0:01:07]} Bf7 {[%emt 0:06:34]} 17. Rfd1 {[%emt 0:03:25]} Rad8 {[%emt 0:01:44]} 18. Qc3 {[%emt 0:07:52]} h5 {[%emt 0:18:33]} 19. Bxf7+ {[%emt 0:03:14]} Rxf7 {[%emt 0:00:14]} 20. Nb6 {[%emt 0:01:43]} Nxb6 {[%emt 0:03:49]} 21. cxb6 {[%emt 0:00:11]} Qb8 {[%emt 0:00:49]} 22. Qxa5 {[%emt 0:02:21]} f5 {[%emt 0:00:46]} 23. Rxd8+ {[%emt 0:00:26]} Bxd8 {[%emt 0:00:50]} 24. exf5 {[%emt 0:01:23]} Rxf5 {[%emt 0:00:31]} 25. Rd1 {[%emt 0:00:52]} Qc8 {[%emt 0:00:46] normal} 1-0